bitfinex-derivatives/quotes_ETHF0:USTF0_20251006
["timestamp","ask_amount","ask_price","bid_price","bid_amount"]
[1759764172278,0.216,4694.8,4694.1,0.4351]
[1759764172475,0.42,4694.6,4693.6,0.0017929]
[1759764172686,6.16076075,4694.8,4693.6,0.0017929]
[1759764172687,0.42,4693.9,4693.6,0.0017929]
[1759764172879,0.42,4693.7,4693.6,0.0017929]
[1759764173186,0.636,4693.7,4693.6,0.0017929]
[1759764173382,2.75218519,4693.9,4693.6,0.0017929]
[1759764173383,0.42,4693.9,4693.6,0.0017929]
[1759764173581,0.216,4693.8,4693.7,0.4351]
[1759764173984,6.37998519,4694.4,4693.7,0.4351]
[1759764174187,0.216,4694.3,4693.6,0.0017929]
[1759764174483,0.42,4693.8,4693.6,0.0017929]
[1759764174684,0.636,4693.7,4693.6,0.0017929]
[1759764175179,0.42,4693.7,4693.6,0.0017929]
[1759764175380,3.41809415,4693.7,4693.6,0.0017929]
[1759764176177,2.78209415,4693.7,4693.6,0.0017929]
[1759764176380,3.2078,4693.9,4693.6,3.2095929]
[1759764176381,0.216,4693.9,4693.6,3.2095929]
[1759764176581,0.216,4694.0,4693.6,3.2095929]
[1759764176886,0.42,4693.9,4693.6,0.0017929]
[1759764177087,0.42,4693.9,4693.6,0.4368929]
[1759764177281,0.42,4693.9,4693.7,3.2078]
[1759764177489,0.216,4693.8,4693.7,3.2078]
[1759764177690,0.636,4693.8,4693.7,3.2078]
[1759764178187,0.636,4693.8,4693.6,0.0017929]
[1759764178188,0.42,4693.7,4693.6,0.0017929]
[1759764178987,0.636,4693.7,4693.6,0.0017929]
[1759764179382,3.41864404,4693.7,4693.6,0.0017929]
[1759764180283,0.42,4694.3,4693.7,0.4351]
[1759764180487,0.42,4694.1,4693.7,0.4351]
[1759764180688,0.216,4694.0,4693.6,0.0017929]
[1759764180886,0.42,4693.9,4693.6,0.0017929]
[1759764181081,0.42,4693.7,4693.6,0.0017929]
[1759764181487,0.42,4693.7,4692.2,3.2078]
[1759764181488,0.1711,4693.5,4692.2,3.2078]
[1759764181682,0.1711,4693.5,4691.7,0.4351]
[1759764181683,0.42,4692.7,4691.7,3.6429]
[1759764181888,0.216,4692.6,4691.7,3.6429]
[1759764182087,0.42,4692.5,4692.3,0.4351]
[1759764182282,1.70758974,4694.0,4692.5,0.1619]
[1759764182486,0.636,4693.9,4692.9,3.2078]
[1759764182686,3.36955301,4693.9,4692.9,3.2078]
[1759764182884,3.15355301,4693.9,4693.0,0.597]
[1759764183085,0.216,4693.8,4693.5,0.4351]
[1759764183290,3.6278,4694.4,4693.5,0.597]
[1759764183484,3.6278,4694.4,4693.6,0.4351]
[1759764183690,0.216,4694.3,4693.6,0.4351]
[1759764184393,0.216,4694.3,4693.4,3.2078]
[1759764184588,0.5911,4693.5,4692.7,3.2078]
[1759764184792,0.42,4693.3,4692.7,3.2078]
[1759764185193,2.81002867,4693.2,4692.7,3.2078]
[1759764185389,0.1711,4693.0,4692.5,0.00249286]
[1759764185596,3.2078,4692.8,4692.5,0.00249286]
[1759764185793,0.42,4692.6,4692.5,0.00249286]
[1759764185992,2.81033184,4692.7,4692.5,0.43759286]
[1759764186196,0.216,4692.8,4692.6,0.4351]
[1759764186393,0.42,4693.5,4692.8,0.4351]
[1759764186593,0.42,4693.5,4692.7,3.2078]
[1759764186594,0.216,4693.4,4693.1,0.4351]
[1759764186792,0.216,4693.3,4693.0,0.1619]
[1759764186990,0.217,4693.2,4693.1,0.4351]
[1759764187388,0.217,4693.2,4692.8,0.4351]
[1759764187690,0.1711,4693.0,4692.5,0.00249286]
[1759764187895,0.42,4692.9,4692.5,0.00249286]
[1759764188094,3.2178529,4692.9,4692.5,0.00249286]
[1759764189096,0.42,4692.7,4692.5,0.00249286]
[1759764189294,0.42,4692.6,4692.5,0.00249286]
[1759764189590,0.42,4692.5,4691.9,0.4351]
[1759764189792,0.1711,4693.5,4691.8,0.00576]
[1759764189793,0.42,4692.8,4692.4,3.2078]
[1759764189994,0.217,4692.7,4692.5,0.4351]
[1759764190192,0.42,4692.6,4692.4,3.2078]
[1759764190498,3.36208902,4692.5,4691.8,0.00576]
[1759764190695,0.1711,4692.0,4691.5,3.2078]
[1759764190888,0.42,4691.8,4691.5,3.2078]
[1759764191293,3.43516487,4691.7,4691.6,0.4351]
[1759764191495,3.01516487,4691.7,4691.6,0.4351]
[1759764191693,0.2185745,4691.7,4691.6,0.43780198]
[1759764191892,3.21973937,4691.7,4691.6,0.00270198]
[1759764192090,3.43673937,4691.7,4691.6,0.00270198]
[1759764192294,0.42,4691.6,4690.9,3.2078]
[1759764192491,0.5911,4691.0,4690.9,3.2078]
[1759764192692,0.42,4690.9,4690.4,3.2078]
[1759764192994,3.16704815,4690.8,4689.8,0.4351]
[1759764193298,0.42,4690.8,4690.7,3.2078]
[1759764193596,3.45296768,4690.8,4690.2,3.2078]
[1759764193796,0.42,4690.7,4690.2,3.2078]
[1759764193992,2.81596768,4690.8,4690.2,3.2078]
[1759764194198,2.81596768,4690.8,4690.7,3.6429]
[1759764194199,0.217,4690.8,4690.7,3.6429]
[1759764194391,0.217,4690.8,4690.7,3.2078]
[1759764194702,0.42,4691.3,4690.7,3.6429]
[1759764194997,0.217,4691.2,4690.7,3.2078]
[1759764195202,0.217,4691.2,4690.8,0.4351]
[1759764195203,2.95843582,4691.2,4690.8,0.4351]
[1759764195399,0.1711,4691.0,4690.2,3.6429]
[1759764195595,0.42,4691.4,4690.8,0.4351]
[1759764195799,0.217,4691.3,4690.7,3.2078]
[1759764195994,0.217,4691.3,4690.8,0.4351]
[1759764196312,2.7081779,4691.2,4691.1,0.4351]
[1759764196602,0.637,4691.2,4691.1,3.2078]
[1759764196797,2.80988748,4691.3,4691.1,3.6429]
[1759764196998,0.217,4691.2,4690.5,3.3697]
[1759764197197,3.02688748,4691.2,4690.5,3.8048]
[1759764197504,0.217,4691.2,4690.5,3.6429]
[1759764197801,2.76690263,4691.1,4690.5,3.6429]
[1759764198097,3.16140263,4691.1,4690.5,3.2078]
[1759764198302,0.217,4691.0,4690.6,0.3914]
[1759764198603,2.79182285,4690.9,4690.6,0.3914]
[1759764198804,0.217,4690.8,4690.5,3.2078]
[1759764199099,0.3945,4691.4,4690.6,0.3914]
[1759764199292,0.217,4691.3,4690.6,0.3914]
[1759764199692,2.77899143,4691.2,4690.6,0.3914]
[1759764200397,2.77899143,4691.2,4690.7,0.38357]
[1759764200598,0.217,4691.1,4690.7,0.38357]
[1759764200795,0.217,4691.1,4690.8,0.38357]
[1759764201502,0.217,4691.1,4690.5,4.14239]
[1759764201702,0.217,4691.1,4690.5,3.7588]
[1759764201902,0.217,4691.1,4690.5,4.14239]
[1759764202297,3.17349143,4691.2,4690.5,4.14239]
[1759764202496,2.91883695,4691.0,4690.0,3.3697]
[1759764202808,3.2078,4690.9,4690.0,3.2078]
[1759764203001,5.96513695,4690.9,4690.0,3.2078]
[1759764203205,5.96513695,4690.9,4689.9,3.5992]
[1759764203501,0.3945,4689.9,4689.8,0.00272843]
[1759764203693,0.6115,4689.9,4689.8,0.00272843]
[1759764203901,3.36438576,4689.9,4689.8,0.00272843]
[1759764204105,3.14738576,4689.9,4689.8,0.00272843]
[1759764204502,3.2078,4690.7,4689.8,0.39412843]
[1759764204806,0.1615,4691.5,4689.8,0.39412843]
[1759764204807,0.217,4690.6,4690.5,0.551]
[1759764204997,6.64976917,4690.6,4689.9,0.3914]
[1759764205200,3.8193,4690.6,4689.9,0.3914]
[1759764205394,0.1615,4690.5,4689.8,0.00272843]
[1759764205594,0.6115,4690.4,4690.1,3.2078]
[1759764205806,0.217,4690.4,4689.8,0.39412843]
[1759764206001,3.16057075,4690.3,4690.0,3.39678747]
[1759764206195,0.3945,4690.2,4689.8,0.00272843]
[1759764206398,0.3945,4690.3,4689.8,0.00272843]
[1759764206600,0.3945,4689.9,4688.9,3.2078]
[1759764206904,2.78780352,4689.8,4688.9,3.2078]
[1759764207304,2.78780352,4689.8,4689.0,0.38372]
[1759764207501,0.3945,4689.9,4689.0,0.1596]
[1759764207697,0.217,4689.8,4689.4,3.2078]
[1759764207895,3.2078,4690.7,4689.9,0.38364]
[1759764208094,3.2078,4690.7,4689.5,0.1596]
[1759764208095,0.3945,4690.3,4689.5,0.1596]
[1759764208300,0.3945,4690.3,4689.6,0.38367]
[1759764208507,0.3945,4690.3,4689.6,0.77507]
[1759764208700,0.3945,4690.3,4689.6,0.3914]
[1759764209105,0.217,4690.2,4689.6,0.3914]
[1759764209301,2.92762683,4690.2,4689.6,0.3914]
[1759764209505,0.3945,4690.1,4689.4,3.2078]
[1759764209700,0.1615,4690.0,4689.5,0.3914]
[1759764209901,0.1615,4690.0,4689.4,3.2078]
[1759764209902,0.3945,4689.9,4689.4,3.2078]
[1759764210097,3.2078,4690.7,4690.4,0.3836]
[1759764210303,0.217,4690.6,4690.4,0.3836]
[1759764210502,2.95116637,4690.6,4690.4,0.3914]
[1759764210699,2.73416637,4690.7,4690.5,0.38359]
[1759764210903,0.3945,4691.4,4690.7,0.3914]
[1759764211206,0.3945,4691.4,4690.6,3.2078]
[1759764211207,0.3945,4691.2,4690.6,3.2078]
[1759764211709,0.3945,4691.2,4690.0,0.1596]
[1759764211710,0.1615,4691.0,4690.0,3.2078]
[1759764211901,0.3945,4690.9,4690.0,3.2078]
[1759764212101,0.217,4690.8,4690.1,0.3914]
[1759764212302,0.3945,4690.7,4690.1,0.3914]
[1759764212500,3.14024301,4690.7,4690.1,0.3914]
[1759764212802,0.3945,4691.4,4690.6,3.2078]
[1759764213006,0.3945,4691.4,4690.7,0.77498]
[1759764213207,0.3945,4691.2,4690.6,3.2078]
[1759764213506,0.1615,4691.0,4690.6,3.2078]
[1759764213706,0.3945,4690.8,4690.3,0.3914]
[1759764213907,0.3945,4690.9,4690.3,0.77501]
[1759764214209,0.217,4690.8,4690.7,3.2078]
[1759764214508,0.3945,4690.8,4690.7,3.2078]
[1759764214702,0.6115,4690.8,4690.2,3.5992]
[1759764214903,3.39928084,4690.8,4690.2,3.5992]
[1759764215505,3.39928084,4690.8,4690.4,0.3836]
[1759764215715,3.39928084,4690.8,4690.5,0.4134]
[1759764215716,3.00478084,4690.8,4690.5,0.4134]
[1759764215904,0.402,4691.3,4690.7,0.79698]
[1759764216206,0.217,4691.2,4690.8,0.4134]
[1759764216408,0.402,4691.1,4690.8,0.4134]
[1759764216611,0.402,4691.0,4690.8,0.4134]
[1759764216906,0.1679,4691.0,4690.2,3.6212]
[1759764217105,0.402,4690.8,4690.2,2.70526]
[1759764217300,0.402,4690.4,4689.7,0.4134]
[1759764217606,2.96388021,4690.3,4689.8,0.38365]
[1759764217812,2.96388021,4690.3,4689.7,0.4134]
[1759764218105,3.3693,4691.5,4690.4,0.3836]
[1759764218305,0.217,4690.9,4690.3,0.4134]
[1759764218504,0.402,4690.6,4689.6,0.4134]
[1759764218709,0.402,4690.4,4689.6,0.4134]
[1759764218906,0.402,4690.4,4689.7,0.38366]
[1759764219103,3.14715011,4690.5,4689.8,0.38365]
[1759764219104,2.76225011,4690.3,4689.8,0.38365]
[1759764219299,2.76225011,4690.3,4689.8,0.79705]
[1759764219505,2.82097808,4690.4,4689.5,3.2078]
[1759764219701,3.3757,4690.0,4689.3,0.4134]
[1759764219906,0.402,4689.8,4689.0,0.38533855]
[1759764220106,0.402,4689.8,4689.0,0.00161855]
[1759764220501,0.402,4689.6,4689.0,0.00161855]
[1759764220702,0.402,4689.3,4689.0,0.00161855]
[1759764221111,6.40190603,4689.5,4689.0,0.00161855]
[1759764221112,0.402,4689.1,4689.0,0.00161855]
[1759764221311,0.217,4689.1,4689.0,0.41501855]
[1759764221809,0.402,4689.4,4689.1,0.4134]
[1759764222111,0.402,4689.4,4689.0,0.00161855]
[1759764222112,0.217,4689.1,4689.0,0.41501855]
[1759764222312,0.619,4689.1,4689.0,0.00161855]
[1759764222511,3.33759307,4689.1,4689.0,0.00161855]
[1759764223302,0.1679,4689.0,4687.9,3.22913174]
[1759764223508,0.5699,4688.0,4687.9,3.22913174]
[1759764223715,0.402,4687.9,4687.2,3.59166]
[1759764223907,0.402,4687.9,4687.2,3.2078]
[1759764224109,3.2078,4687.3,4686.9,0.38389]
[1759764224308,0.217,4687.2,4687.0,0.38388]
[1759764224509,0.00153453,4687.3,4687.2,0.38387]
[1759764224807,0.21853453,4687.3,4687.2,0.38387]
[1759764225205,0.00153453,4687.3,4687.2,0.38387]
[1759764225409,0.00153453,4687.3,4687.2,0.70787]
[1759764225612,0.62053453,4687.3,4687.0,0.38388]
[1759764225813,0.21853453,4687.3,4687.0,0.324]
[1759764226111,0.00153453,4687.3,4687.1,0.38387]
[1759764226304,0.402,4687.2,4686.9,0.32606041]
[1759764226617,0.402,4687.2,4687.0,0.38388]
[1759764226805,0.402,4687.2,4687.0,0.70788]
[1759764227010,0.402,4687.0,4686.9,0.00206041]
[1759764227205,0.7869,4687.0,4686.9,0.00206041]
[1759764227514,0.402,4686.9,4686.0,0.324]
[1759764227908,0.4054,4686.7,4686.4,0.3562]
[1759764228309,0.1754,4686.5,4686.4,0.00177874]
[1759764228514,0.7978,4686.5,4686.4,0.00177874]
[1759764228714,0.5808,4686.5,4686.4,0.00177874]
[1759764229014,0.4054,4686.4,4685.7,3.2078]
[1759764229312,0.1679,4687.0,4686.4,0.38393]
[1759764229513,0.4054,4686.9,4686.5,0.3562]
[1759764229718,0.4054,4687.2,4687.1,0.38387]
[1759764229911,0.4054,4687.2,4687.1,0.00253522]
[1759764230217,0.6224,4687.2,4687.1,0.00253522]
[1759764230415,0.4054,4687.2,4687.1,0.00253522]
[1759764230618,0.00153453,4687.3,4687.1,0.74260522]
[1759764230812,0.00153453,4687.3,4687.1,0.35873522]
[1759764231011,0.6224,4687.2,4687.1,0.00253522]
[1759764231213,0.4054,4687.2,4687.1,0.35873522]
[1759764231417,0.6224,4687.2,4687.1,0.00253522]
[1759764232011,0.4054,4687.2,4687.1,0.00253522]
[1759764232211,0.6224,4687.2,4687.1,0.00253522]
[1759764233011,0.4054,4687.2,4685.9,0.3562]
[1759764233215,0.5808,4687.0,4686.3,0.3562]
[1759764233417,0.217,4686.9,4686.2,3.2078]
[1759764233720,0.4054,4686.8,4686.4,0.38393]
[1759764234018,3.2078,4686.9,4686.8,0.7401]
[1759764234213,3.8302,4686.9,4686.8,0.3839]
[1759764234418,0.4054,4686.8,4686.7,0.3839]
[1759764234619,3.4248,4686.9,4686.6,0.38391]
[1759764234812,0.5808,4686.5,4686.4,0.0023777]
[1759764235012,0.7978,4686.5,4686.4,0.0023777]
[1759764235318,3.2078,4686.9,4686.6,0.38391]
[1759764235516,0.4054,4686.7,4686.6,0.38391]
[1759764235711,3.2078,4686.9,4686.8,0.7401]
[1759764235911,0.217,4686.9,4686.8,0.7401]
[1759764236113,0.6224,4686.9,4686.8,0.3839]
[1759764236520,0.40693453,4687.3,4687.2,0.38387]
[1759764236816,0.62393453,4687.3,4687.2,0.38387]
[1759764237211,0.40693453,4687.3,4687.2,0.38387]
[1759764237816,0.62393453,4687.3,4687.2,0.38387]
[1759764238013,0.21853453,4687.3,4687.2,5.74007]
[1759764238514,0.62393453,4687.3,4687.2,0.74007]
[1759764238723,0.00153453,4687.3,4687.2,0.74007]
[1759764238916,0.62393453,4687.3,4687.2,0.38387]
[1759764239917,0.00153453,4687.3,4687.2,0.74006]
[1759764240410,0.00153453,4687.3,4687.2,5.74006]
[1759764241722,0.4054,4688.5,4688.4,0.73847]
[1759764241920,0.5808,4689.0,4688.9,0.38373]
[1759764242118,0.5808,4689.5,4689.4,0.38368]
[1759764242322,0.7978,4689.5,4689.4,0.38368]
[1759764242617,0.80010503,4689.5,4689.4,0.38368]
[1759764243015,0.39470503,4689.5,4689.1,0.3837]
[1759764243209,0.4054,4689.4,4689.2,0.3837]
[1759764243511,0.39470503,4689.5,4689.3,0.38369]
[1759764243715,0.40770503,4689.5,4689.3,0.73839]
[1759764244010,0.217,4689.4,4689.3,0.73839]
[1759764244519,0.4054,4689.3,4689.2,0.3837]
[1759764244817,0.4054,4689.3,4688.7,3.2078]
[1759764244818,0.4054,4689.3,4689.0,0.38371]
[1759764245018,0.1754,4689.0,4688.8,0.38373]
[1759764245213,0.6224,4688.9,4688.8,0.38373]
[1759764245615,0.4054,4688.9,4688.8,0.38373]
[1759764245823,0.17770503,4689.5,4688.8,0.38373]
[1759764245824,0.17770503,4689.5,4689.3,0.38369]
[1759764246017,0.4054,4689.4,4689.3,0.38369]
[1759764246213,0.00230503,4689.5,4689.4,0.3547]
[1759764247118,0.00230503,4689.5,4689.4,5.3547]
[1759764247419,0.40770503,4689.5,4689.3,0.38369]
[1759764247620,3.4248,4689.4,4688.3,0.38377]
[1759764247819,0.4054,4688.9,4688.3,0.3547]
[1759764248018,0.4054,4689.4,4689.1,0.7384]
[1759764248214,0.4054,4689.4,4689.1,0.3837]
[1759764248416,0.4054,4689.4,4689.3,0.38369]
[1759764248825,0.00230503,4689.5,4689.4,0.3547]
[1759764249021,0.4054,4689.4,4689.3,0.38369]
[1759764249223,0.17770503,4689.5,4688.9,0.3547]
[1759764249517,0.5004,4689.4,4689.3,0.38369]
[1759764249918,0.6214,4689.4,4689.3,0.38369]
[1759764250127,0.00230503,4689.5,4689.4,0.3547]
[1759764252122,0.00230503,4689.5,4689.4,5.3547]
[1759764252723,0.00230503,4689.5,4689.3,0.38369]
[1759764252724,0.4054,4689.4,4689.3,0.38369]
[1759764252923,0.4054,4689.4,4689.1,0.3837]
[1759764253118,0.39370503,4689.5,4689.2,0.3837]
[1759764253324,0.4054,4689.4,4689.2,0.3837]
[1759764253526,0.4054,4689.4,4689.3,0.38368]
[1759764253929,0.17770503,4689.5,4688.8,3.2078]
[1759764254125,0.5808,4689.0,4688.9,0.38373]
[1759764254323,0.4054,4688.9,4688.1,3.2078]
[1759764254525,0.4054,4688.4,4688.1,3.59159]
[1759764254728,0.1754,4688.5,4688.1,3.2078]
[1759764254932,0.4054,4688.4,4688.1,3.2078]
[1759764255329,0.1754,4688.5,4687.9,0.3838]
[1759764255633,0.1754,4688.5,4687.9,0.3547]
[1759764255831,0.216,4688.4,4687.9,0.3547]
[1759764256132,0.216,4688.4,4688.1,0.38379]
[1759764256540,0.216,4688.4,4687.3,3.2078]
[1759764256740,0.4054,4688.3,4687.9,0.3838]
[1759764257140,0.4054,4688.3,4687.4,0.95963]
[1759764257438,3.2078,4688.6,4688.4,0.73847]
[1759764257740,0.4054,4688.4,4688.3,0.38377]
[1759764258437,0.3914,4688.5,4687.9,4.16732]
[1759764258634,0.3998,4688.9,4688.7,0.38374]
[1759764258836,0.1754,4689.0,4688.7,0.38374]
[1759764258837,0.216,4688.8,4688.7,0.38374]
[1759764259144,0.3998,4688.7,4687.9,3.2078]
[1759764259340,0.216,4688.8,4688.0,0.34]
[1759764259341,0.3998,4688.8,4688.0,0.34]
[1759764259636,0.1754,4689.0,4688.7,0.38374]
[1759764259836,0.3998,4688.8,4688.7,0.38374]
[1759764260036,0.6158,4688.8,4688.7,0.38374]
[1759764260236,0.3998,4688.8,4688.7,0.38374]
[1759764260437,0.3998,4688.7,4688.6,0.38374]
[1759764261844,0.00230503,4689.5,4688.7,0.34]
[1759764262040,0.00230503,4689.5,4689.4,0.34]
[1759764263040,0.40210503,4689.5,4689.3,0.38369]
[1759764263236,0.00230503,4689.5,4689.3,0.38369]
[1759764263440,0.3998,4689.4,4689.3,0.38369]
[1759764263647,0.00230503,4689.5,4689.3,0.38369]
[1759764263843,0.00230503,4689.5,4689.3,0.72369]
[1759764264242,0.00230503,4689.5,4689.4,0.34]
[1759764265347,0.3998,4689.4,4689.3,0.38369]
[1759764265740,0.3998,4689.4,4689.3,0.72369]
[1759764265948,0.61810503,4689.5,4689.3,0.72369]
[1759764266250,0.3998,4689.4,4689.3,0.38369]
[1759764266546,0.3998,4689.4,4689.3,0.72369]
[1759764266748,0.40210503,4689.5,4689.3,0.72369]
[1759764266944,0.00230503,4689.5,4689.4,0.34]
[1759764267648,0.40210503,4689.5,4689.3,0.38369]
[1759764267840,0.00230503,4689.5,4689.4,0.34]
[1759764268040,0.00230503,4689.5,4689.1,3.2078]
[1759764268041,0.3998,4689.4,4689.3,0.38369]
[1759764269346,0.00230503,4689.5,4689.4,0.34]
[1759764269743,0.00230503,4689.5,4689.3,0.38369]
[1759764270138,0.00230503,4689.5,4689.4,0.34]
[1759764270345,0.5676,4690.5,4690.3,0.3836]
[1759764270542,3.2078,4690.8,4690.7,0.38358]
[1759764270748,0.3998,4690.9,4690.7,0.72358]
[1759764270943,0.5676,4691.5,4690.9,0.34]
[1759764271143,0.3998,4691.4,4691.3,0.38353]
[1759764271442,0.40215861,4691.4,4691.3,0.38588767]
[1759764273746,0.00235861,4691.4,4691.3,0.72588767]
[1759764273947,0.40215861,4691.4,4691.3,0.38588767]
[1759764274150,0.00235861,4691.4,4691.3,0.72588767]
[1759764274445,0.00235861,4691.4,4691.3,5.72588767]
[1759764279955,0.00235861,4691.4,4691.3,5.94188767]
[1759764282457,8.61e-06,4691.4,4691.3,0.94188767]
[1759764283659,0.42460861,4691.4,4691.3,0.38588767]
[1759764283955,0.42460861,4691.4,4691.3,0.00235767]
[1759764283956,5.42460861,4691.4,4691.3,0.00235767]
[1759764284347,0.42460861,4691.4,4691.3,0.00235767]
[1759764284756,0.64060861,4691.4,4691.3,0.00235767]
[1759764285153,5.42460861,4691.4,4691.3,0.00235767]
[1759764285954,0.42460861,4691.4,4691.3,0.00235767]
[1759764286158,8.61e-06,4691.4,4691.3,3.21015767]
[1759764287661,8.61e-06,4691.4,4691.3,3.42615767]
[1759764287859,0.41140861,4691.4,4691.3,3.21015767]
[1759764288063,0.41140861,4691.4,4691.3,0.00235767]
[1759764290663,5.41140861,4691.4,4691.3,0.00235767]
[1759764290959,0.4114,4690.9,4690.6,0.38359]
[1759764291253,0.4114,4690.7,4690.6,0.38359]
[1759764291960,0.4114,4690.7,4690.6,0.3851373]
[1759764292849,0.4114,4691.0,4690.9,0.38356]
[1759764293660,0.5804,4691.0,4690.9,0.38356]
[1759764294258,0.4804,4691.0,4690.9,0.38356]
[1759764294456,0.4804,4691.0,4690.7,3.2078]
[1759764294457,0.169,4691.0,4690.7,3.2078]
[1759764294958,0.169,4691.0,4690.7,3.59137]
[1759764295259,0.385,4691.0,4690.8,0.38357]
[1759764295457,0.169,4691.0,4690.8,0.38357]
[1759764296362,0.4114,4690.9,4690.8,0.38357]
[1759764296759,0.4114,4690.8,4690.6,0.0015473]
[1759764297358,0.4114,4690.8,4690.6,0.3851373]
[1759764297560,0.4114,4690.8,4690.6,0.0015473]
[1759764300254,5.9616,4690.7,4690.6,0.0015473]
[1759764300570,6.9879031,4690.7,4690.6,0.0015473]
[1759764300857,9.3854,4690.7,4690.6,0.0015473]
[1759764301359,4.1694,4690.7,4690.6,0.0015473]
[1759764301565,1.1776,4690.7,4690.6,0.2710473]
[1759764301959,0.9616,4690.7,4690.6,0.0015473]
[1759764302160,1.1776,4690.7,4690.6,0.0015473]
[1759764302665,0.9616,4690.7,4690.6,0.5552473]
[1759764302866,0.4114,4690.7,4690.6,0.4043473]
[1759764303065,0.5804,4691.0,4690.9,0.38356]
[1759764303266,0.5804,4691.0,4690.9,3.59136]
[1759764304668,0.4114,4691.0,4690.9,3.99416]
[1759764305064,0.41140861,4691.4,4691.3,0.38353]
[1759764305265,0.9616,4691.3,4691.2,0.65303]
[1759764306265,0.9616,4691.3,4690.9,3.2078]
[1759764306266,0.9616,4691.2,4691.1,0.38354]
[1759764306459,0.9616,4691.2,4691.1,0.65304]
[1759764306663,0.6789,4691.2,4691.1,0.93724]
[1759764306966,0.9616,4691.2,4691.1,0.38354]
[1759764307366,1.1766,4691.2,4691.1,0.38354]
[1759764308061,0.9616,4691.2,4691.1,0.93724]
[1759764308262,0.9616,4691.2,4691.1,0.65304]
[1759764308761,0.9616,4691.2,4691.1,0.38354]
[1759764309165,8.61e-06,4691.4,4691.3,0.38353]
[1759764309868,8.61e-06,4691.4,4691.3,5.38353]
[1759764310259,8.61e-06,4691.4,4691.3,5.54855692]
[1759764310461,0.6789,4692.8,4692.7,0.65291]
[1759764310767,0.6789,4692.8,4692.6,0.38342]
[1759764310768,0.9616,4692.8,4692.6,0.38342]
[1759764311163,0.4114,4692.7,4692.6,0.38342]
[1759764311357,0.96365395,4692.7,4692.6,0.65292]
[1759764311557,0.00205395,4692.7,4692.6,1.33992]
[1759764311860,0.00205395,4692.7,4692.6,3.99402]
[1759764312062,0.00205395,4692.7,4692.6,8.99402]
[1759764312266,3.95e-06,4692.9,4692.8,0.78621]
[1759764312466,3.95e-06,4692.9,4692.8,1.00121]
[1759764312860,0.266,4694.0,4693.6,0.4028]
[1759764312861,0.5804,4694.0,4693.6,0.4028]
[1759764313061,0.5804,4694.0,4693.9,0.38332]
[1759764313364,0.58225594,4694.0,4693.9,0.38604705]
[1759764314470,0.79725594,4694.0,4693.9,0.38604705]
[1759764314665,0.41325594,4694.0,4693.9,0.38604705]
[1759764314863,0.00185594,4694.0,4693.9,0.78884705]
[1759764315068,0.41325594,4694.0,4693.9,0.78884705]
[1759764315464,0.00185594,4694.0,4693.9,0.78884705]
[1759764315663,0.58225594,4694.0,4693.9,0.38604705]
[1759764315864,0.41325594,4694.0,4693.9,0.78884705]
[1759764317068,0.00185594,4694.0,4693.9,0.40552705]
[1759764317274,0.4114,4694.6,4694.5,0.4028]
[1759764317465,0.4114,4694.6,4694.5,3.6106]
[1759764317663,1.1306,4694.5,4694.4,0.38328]
[1759764317866,1.1306,4694.5,4694.0,3.2078]
[1759764318063,0.4176,4694.4,4694.0,3.2078]
[1759764318267,0.9559,4694.1,4694.0,3.2078]
[1759764318461,0.9559,4694.1,4694.0,3.4756]
[1759764318666,0.9559,4694.1,4694.0,3.85891]
[1759764318866,0.9559,4694.1,4694.0,4.11611]
[1759764319560,0.9559,4694.1,4694.0,3.2078]
[1759764319866,1.1235,4694.0,4693.9,0.00272705]
[1759764320374,5.5852,4694.0,4693.9,0.00272705]
[1759764320569,8.38202128,4694.0,4693.9,0.00272705]
[1759764320867,0.4176,4692.9,4692.8,0.38341]
[1759764321966,0.4176,4692.9,4692.8,0.3851625]
[1759764322365,0.4176,4692.9,4692.8,0.7921625]
[1759764322567,0.1676,4693.5,4692.9,0.38339]
[1759764322568,0.1676,4693.0,4692.9,0.38339]
[1759764322774,1.1235,4693.0,4692.9,0.38339]
[1759764323168,1.3385,4693.0,4692.9,0.38339]
[1759764323667,1.3385,4693.0,4692.9,0.65119]
[1759764323871,1.1235,4693.0,4692.9,0.65119]
[1759764324272,1.3385,4693.0,4692.9,0.2678]
[1759764324767,1.1235,4693.0,4692.9,0.2678]
[1759764324968,0.6326,4693.0,4692.9,0.932]
[1759764325169,0.4176,4693.0,4692.9,0.932]
[1759764325867,0.6944,4693.0,4692.9,0.932]
[1759764326069,0.6944,4693.0,4692.9,0.525]
[1759764326270,1.1235,4693.0,4692.9,0.2678]
[1759764326475,1.1235,4693.0,4692.8,0.0017525]
[1759764327374,0.5852,4693.0,4692.8,0.0017525]
[1759764328769,0.4176,4692.9,4692.8,0.3851525]
[1759764328972,0.5852,4693.5,4693.4,0.38336]
[1759764329169,0.4176,4693.5,4693.4,0.38336]
[1759764329478,0.4176,4693.5,4693.4,0.79036]
[1759764330163,3.2078,4694.3,4693.4,1.3654]
[1759764330369,0.4176,4693.8,4693.7,0.38333]
[1759764330970,0.4176,4693.8,4693.4,4.5732]
[1759764330971,0.1676,4693.5,4693.4,3.2078]
[1759764331175,0.1676,4693.0,4692.9,0.3834]
[1759764331377,0.5852,4693.0,4692.9,0.3834]
[1759764332070,0.5852,4693.0,4692.8,0.0017525]
[1759764332669,0.4176,4692.9,4692.8,0.3851625]
[1759764333174,0.5696,4692.9,4692.8,0.3851625]
[1759764333366,0.6326,4692.9,4692.8,0.3851625]
[1759764333571,0.6326,4692.9,4692.8,0.0017525]
[1759764334373,0.4176,4692.9,4692.8,0.0017525]
[1759764334570,3.2078,4693.4,4692.9,0.407]
[1759764334770,0.6326,4693.2,4693.0,0.38339]